fUST/lending_fUST_20240325
["ID","MTS","AMOUNT","RATE_DAILY","PERIOD"]
[320393799,1711345762288,-166.666666,0.00040635,2]
[320393800,1711345762310,-151.77830393,0.00040853,30]
[320393801,1711345762330,-2908.907326,0.000429,39]
[320393802,1711345762350,-151.77830393,0.00042961,30]
[320393803,1711345762370,-150.59564405,0.00043842,30]
[320393804,1711345762390,-271.0,0.00046677,2]
[320393805,1711345762410,-150.80395486,0.00046677,2]
[320393806,1711345762430,-530.23672042,0.00046812,4]
[320393807,1711345762449,-644.38028265,0.00046813,15]
[320393808,1711345762470,-150.59564405,0.00047092,30]
[320393809,1711345762489,-154.95351395,0.00047917,4]
[320393810,1711345762511,-500.0,0.00047917,120]
[320393811,1711345762532,-500.0,0.00047917,120]
[320393812,1711345762552,-500.0,0.00047917,120]
[320393813,1711345762573,-500.0,0.00047917,120]
[320393814,1711345762596,-500.0,0.00047917,120]
[320393815,1711345762616,-500.0,0.00047917,120]
[320393816,1711345762636,-500.0,0.00047917,120]
[320393817,1711345762657,-500.0,0.00047917,120]
[320393818,1711345762677,-500.0,0.00047917,120]
[320393819,1711345762699,-500.0,0.00047917,120]
[320393820,1711345762722,-500.0,0.00047917,120]
[320393821,1711345762744,-500.0,0.00047917,120]
[320393822,1711345762765,-500.0,0.00047917,120]
[320393823,1711345762786,-491.1586714,0.00047917,120]
[320393824,1711345762807,-500.0,0.00047917,120]
[320393825,1711345762829,-500.0,0.00047917,120]
[320393826,1711345762850,-535.87708587,0.00047917,120]
[320393827,1711345762872,-20154.64083102,0.00047919,30]
[320393828,1711345762892,-6034.65890714,0.00048,90]
[320393829,1711345762912,-151.77830393,0.0004837,30]
[320393830,1711345762933,-155.19995675,0.00048594,4]
[320393831,1711345762954,-237.74852667,0.00048594,4]
[320393832,1711345762974,-155.52550938,0.00048595,4]
[320393833,1711345762992,-324.83557858,0.00048597,4]
[320393834,1711345763013,-154.98450255,0.00048597,2]
[320393835,1711345763033,-310.37214593,0.00048597,4]
[320393836,1711345763054,-927.45417367,0.00048598,4]
[320393837,1711345763075,-159.84906088,0.00048599,120]
[320393838,1711345763095,-500.0,0.00048599,120]
[320393839,1711345763116,-588.68336553,0.00048599,120]
[320393840,1711345763135,-220.18747119,0.00048599,120]
[320393841,1711345763155,-500.0,0.00048599,120]
[320393842,1711345763176,-588.68336553,0.00048599,120]
[320393843,1711345763197,-588.68336553,0.00048599,120]
[320393844,1711345763221,-588.68336553,0.00048599,120]
[320393845,1711345763372,-588.68336553,0.00048599,120]
[320393846,1711345763393,-236.05361712,0.00048599,120]
[320393847,1711345763413,-588.68336553,0.00048599,120]
[320393848,1711345763434,-588.68336553,0.00048599,120]
[320393849,1711345763455,-588.68336553,0.00048599,120]
[320393850,1711345763476,-588.68336553,0.00048599,120]
[320393851,1711345763497,-588.68336553,0.00048599,120]
[320393852,1711345763519,-588.68336553,0.00048599,120]
[320393853,1711345763540,-588.68336553,0.00048599,120]
[320393854,1711345763563,-588.68336553,0.00048599,120]
[320393855,1711345763584,-588.68336553,0.00048599,120]
[320393856,1711345763605,-588.68336553,0.00048599,120]
[320393857,1711345763625,-588.68336553,0.00048599,120]
[320393858,1711345763645,-588.68336553,0.00048599,120]
[320393859,1711345763665,-588.68336553,0.00048599,120]
[320393860,1711345763686,-588.68336553,0.00048599,120]
[320393861,1711345763705,-588.68336553,0.00048599,120]
[320393862,1711345763726,-588.68336553,0.00048599,120]
[320393863,1711345763746,-588.68336553,0.00048599,120]
[320393864,1711345763767,-588.68336553,0.00048599,120]
[320393865,1711345763787,-588.68336553,0.00048599,120]
[320393866,1711345763807,-588.68336553,0.00048599,120]
[320393867,1711345763827,-588.68336553,0.00048599,120]
[320393868,1711345763847,-588.68336553,0.00048599,120]
[320393869,1711345763867,-588.68336553,0.00048599,120]
[320393870,1711345763888,-588.68336553,0.00048599,120]
[320393871,1711345763913,-588.68336553,0.00048599,120]
[320393872,1711345763933,-588.68336553,0.00048599,120]
[320393873,1711345763952,-588.68336553,0.00048599,120]
[320393874,1711345763974,-588.68336553,0.00048599,120]
[320393875,1711345763995,-588.68336553,0.00048599,120]
[320393876,1711345764016,-588.68336553,0.00048599,120]
[320393877,1711345764036,-588.68336553,0.00048599,120]
[320393878,1711345764057,-588.68336553,0.00048599,120]
[320393879,1711345764076,-588.68336553,0.00048599,120]
[320393880,1711345764096,-588.68336553,0.00048599,120]
[320393881,1711345764116,-588.68336553,0.00048599,120]
[320393882,1711345764137,-593.22578616,0.00048599,120]
[320393883,1711345764157,-307.39444955,0.00048599,120]
[320393884,1711345764176,-356.24608437,0.00048599,120]
[320393885,1711345764196,-532.00888623,0.00048599,120]
[320393886,1711345764218,-593.22578616,0.00048599,120]
[320393887,1711345764240,-593.22578616,0.00048599,120]
[320393888,1711345764259,-593.22578616,0.00048599,120]
[320393889,1711345764279,-593.22578616,0.00048599,120]
[320393890,1711345764301,-593.22578616,0.00048599,120]
[320393891,1711345764323,-593.22578616,0.00048599,120]
[320393892,1711345764343,-593.22578616,0.00048599,120]
[320393893,1711345764362,-593.22578616,0.00048599,120]
[320393894,1711345764382,-593.22578616,0.00048599,120]
[320393895,1711345764404,-593.22578616,0.00048599,120]
[320393896,1711345764424,-593.22578616,0.00048599,120]
[320393897,1711345764445,-593.22578616,0.00048599,120]
[320393898,1711345764491,-593.22578616,0.00048599,120]
[320393899,1711345764542,-593.22578616,0.00048599,120]
[320393900,1711345764584,-593.22578616,0.00048599,120]
[320393901,1711345764622,-593.22578616,0.00048599,120]
[320393902,1711345764643,-593.22578616,0.00048599,120]
[320393903,1711345764662,-593.22578616,0.00048599,120]
[320393904,1711345764683,-566.2609777,0.00048599,120]
[320393905,1711345764703,-566.2609777,0.00048599,120]
[320393906,1711345764723,-566.2609777,0.00048599,120]
[320393907,1711345764743,-566.2609777,0.00048599,120]
[320393908,1711345764765,-566.2609777,0.00048599,120]
[320393909,1711345764784,-566.2609777,0.00048599,120]
[320393910,1711345764803,-566.2609777,0.00048599,120]
[320393911,1711345764823,-566.2609777,0.00048599,120]
[320393912,1711345764842,-566.2609777,0.00048599,120]
[320393913,1711345764861,-10000.0,0.000486,30]
[320393914,1711345764879,-226.42456802,0.00048915,4]
[320393915,1711345764899,-196.35977791,0.00049222,4]
[320393916,1711345764919,-150.59564405,0.00050015,60]
[320393917,1711345764939,-151.77830393,0.00050254,60]
[320393918,1711345764959,-15250.23946954,0.00051384,120]
[320393919,1711345765069,-3195.614577,0.00029947,2]
[320393920,1711345765089,-4683.84621894,0.00051384,120]
[320393921,1711345765109,-500.0,0.00053999,2]
[320393922,1711345765131,-29126.87,0.00053999,120]
[320393923,1711345765157,-18222.94047779,0.00054,61]
[320393924,1711345765178,-2009.2,0.00054,120]
[320393925,1711345765198,-2149.85866898,0.00054,120]
[320393926,1711345768118,-17808.13554192,0.00054,120]
[320393927,1711345768139,-337.58105214,0.00054,30]
[320393928,1711345768160,-1004.0,0.00054,120]
[320393929,1711345768181,-500.0,0.00054054,2]
[320393930,1711345768202,-248.4253305,0.00054109,2]
[320393931,1711345768225,-36763.1947407,0.0005435,120]
[320393932,1711345768246,-616.5125994,0.00054359,120]
[320393933,1711345768267,-616.5125994,0.0005437,120]
[320393934,1711345768287,-616.5125994,0.00054385,120]
[320393935,1711345768308,-79023.41674796,0.00054385,120]
[320393936,1711345771213,-155.12379257,0.00053999,4]
[320393937,1711345771237,-605.14923493,0.00053999,4]
[320393938,1711345771258,-154.81422293,0.00053999,4]
[320393939,1711345771282,-2951.28817099,0.00053999,4]
[320393940,1711345771308,-33639.66914204,0.00054385,120]
[320393941,1711345771331,-545.52543231,0.00054598,4]
[320393942,1711345771351,-469.11916773,0.00054598,4]
[320393943,1711345771371,-4487.26477204,0.00054599,4]
[320393944,1711345771391,-763.0,0.000546,120]
[320393945,1711345771412,-7756.68543965,0.00054636,5]
[320393946,1711345771433,-346.48706245,0.00054691,4]
[320393947,1711345771453,-211.28132556,0.00054691,4]
[320393948,1711345771475,-240.45169697,0.00054691,4]
[320393949,1711345771496,-354.65998098,0.00054691,4]
[320393950,1711345771521,-155.1366588,0.00054691,4]
[320393951,1711345771541,-154.98238752,0.00054691,4]
[320393952,1711345771563,-155.4665164,0.00054691,4]
[320393953,1711345771585,-1906.6741137,0.00054691,120]
[320393954,1711345771608,-392.04620348,0.00054691,4]
[320393955,1711345771630,-180.24387413,0.00054691,4]
[320393956,1711345771652,-326.83546449,0.00054691,4]
[320393957,1711345771673,-155.79804823,0.00054691,4]
[320393958,1711345771694,-222.69768656,0.00054691,4]
[320393959,1711345771715,-445.20357372,0.00054691,2]
[320393960,1711345771736,-255.75294514,0.00054691,4]
[320393961,1711345771756,-603.12853459,0.00054691,4]
[320393962,1711345771779,-1899.72787318,0.00054691,4]
[320393963,1711345771799,-221.10085457,0.00054691,4]
[320393964,1711345771821,-534.71774984,0.00054691,4]
[320393965,1711345771841,-3181.0535575,0.00054691,4]
[320393966,1711345771862,-166.55952932,0.00054691,4]
[320393967,1711345771882,-204.77269619,0.00054691,4]
[320393968,1711345771904,-205.27707627,0.00054691,4]
[320393969,1711345771924,-156.94605154,0.00054691,4]
[320393970,1711345771946,-155.12606552,0.00054691,4]
[320393971,1711345771967,-205.02928587,0.00054691,4]
[320393972,1711345771987,-155.24144602,0.00054691,2]
[320393973,1711345772015,-184.02969221,0.00054691,4]
[320393974,1711345772035,-1537.7459813,0.00054691,4]
[320393975,1711345772056,-322.61827325,0.00054691,4]
[320393976,1711345772077,-242.91785712,0.00054691,4]
[320393977,1711345772099,-155.60200661,0.00054691,4]
[320393978,1711345772119,-304.78785734,0.00054691,4]
[320393979,1711345772140,-339.17618549,0.00054691,7]
[320393980,1711345772161,-779.72077743,0.00054691,4]
[320393981,1711345772183,-157.59622062,0.00054691,4]
[320393982,1711345772204,-404.89614019,0.00054691,4]
[320393983,1711345772227,-239.29822108,0.00054691,4]
[320393984,1711345772247,-1622.34720789,0.00054691,2]
[320393985,1711345772270,-593.28409045,0.00054691,2]
[320393986,1711345772292,-2852.78581658,0.00054691,120]
[320393987,1711345772314,-302.5150439,0.00054691,39]
[320393988,1711345772334,-2504.82654724,0.00054692,2]
[320393989,1711345772355,-500.0,0.00054692,120]
[320393990,1711345772376,-500.0,0.00054692,120]
[320393991,1711345772397,-500.0,0.00054692,120]
[320393992,1711345772419,-500.0,0.00054692,120]
[320393993,1711345772441,-500.0,0.00054692,120]
[320393994,1711345772464,-29126.87,0.00054692,120]
[320393995,1711345772490,-29126.87,0.00054692,120]
[320393996,1711345772514,-54279.92012753,0.00054693,2]
[320394013,1711345832774,-161.43060968,0.00054592,14]
[320394014,1711345832783,-1332.90372653,0.00054593,2]
[320394015,1711345832792,-161.25256198,0.00054597,4]
[320394016,1711345832802,-363.61666763,0.00054597,30]
[320394017,1711345832811,-340.54766432,0.00054598,4]
[320394018,1711345832820,-1332.90372653,0.00054618,2]
[320394019,1711345832829,-1332.90372653,0.00054643,2]
[320394021,1711345832838,-209.9321168,0.00054668,2]
[320394040,1711345838542,-504.77417138,0.00054395,10]
[320394041,1711345838551,-543.76582862,0.00054668,2]
[320394043,1711345838563,-579.20578111,0.00054668,2]
[320394045,1711345838572,-500.0,0.0005469,120]
[320394046,1711345838581,-387.90651905,0.0005469,120]
[320394047,1711345838590,-298.91010068,0.0005469,4]
[320394048,1711345838600,-155.64674046,0.0005469,4]
[320394049,1711345838609,-863.76759175,0.0005469,4]
[320394050,1711345838618,-155.33776368,0.0005469,4]
[320394051,1711345838628,-1040.81772609,0.00054691,4]
[320394052,1711345838637,-204.40586947,0.00054691,4]
[320394053,1711345838646,-10669.15417497,0.00054691,30]
[320394054,1711345838657,-1089.17436889,0.00054691,30]
[320394055,1711345838673,-1139.6943049,0.00054691,30]
[320394065,1711345843749,-373.13999996,0.00054691,30]
[320394066,1711345843762,-7072.64888912,0.00054691,30]
[320394067,1711345843774,-105868.83320011,0.00054691,30]
[320394068,1711345843785,-380.41875101,0.00054691,120]
[320394069,1711345843795,-500.0,0.00054691,120]
[320394070,1711345843805,-152.6768933,0.00054691,120]
[320394071,1711345843814,-500.0,0.00054691,120]
[320394072,1711345843823,-500.0,0.00054691,120]
[320394073,1711345843833,-500.0,0.00054691,120]
[320394074,1711345843844,-500.0,0.00054691,120]
[320394075,1711345843853,-500.0,0.00054691,120]
[320394076,1711345843863,-500.0,0.00054691,120]
[320394077,1711345843874,-500.0,0.00054691,120]
[320394078,1711345843883,-500.0,0.00054691,120]
[320394079,1711345843893,-500.0,0.00054691,120]
[320394080,1711345843902,-500.0,0.00054691,120]
[320394081,1711345843911,-500.0,0.00054691,120]
[320394082,1711345843922,-500.0,0.00054691,120]
[320394083,1711345843931,-500.0,0.00054691,120]
[320394084,1711345843942,-500.0,0.00054691,120]
[320394085,1711345843951,-500.0,0.00054691,120]
[320394086,1711345843961,-500.0,0.00054691,120]
[320394087,1711345843970,-500.0,0.00054691,120]
[320394088,1711345843980,-500.0,0.00054691,120]
[320394089,1711345843990,-500.0,0.00054691,120]
[320394090,1711345843999,-500.0,0.00054691,120]
[320394091,1711345844009,-500.0,0.00054691,120]
[320394092,1711345844018,-306.62037042,0.00054691,120]
[320394093,1711345844027,-500.0,0.00054691,120]
[320394094,1711345844037,-500.0,0.00054691,120]
[320394095,1711345844047,-500.0,0.00054691,120]
[320394096,1711345844057,-59144.4215414,0.00054692,4]
[320394097,1711345844066,-36352.27846895,0.00054693,2]
[320394099,1711345846766,-445.20357372,0.0005469,2]
[320394100,1711345846775,-229.51349944,0.0005469,4]
[320394101,1711345846785,-6471.90745735,0.00054693,2]
[320394102,1711345846794,-151.0,0.00054693,7]
[320394104,1711345846803,-151.0,0.00054693,7]
[320394106,1711345846812,-196.74347,0.00054693,7]
[320394109,1711345846821,-151.0,0.00054693,7]
[320394112,1711345846830,-151.0,0.00054693,7]
[320394114,1711345846838,-1332.90372653,0.00054693,2]
[320394115,1711345846848,-482.363794,0.00054693,7]
[320394116,1711345846857,-482.363794,0.00054693,7]
[320394117,1711345846866,-151.133521,0.00054693,7]
[320394118,1711345846875,-1055.88245535,0.00054693,4]
[320394119,1711345846884,-18222.94047779,0.00054789,61]
[320394120,1711345846894,-500.0,0.00054789,120]
[320394121,1711345846903,-29126.87,0.00054789,120]
[320394122,1711345846912,-987.38885002,0.0005479,4]
[320394123,1711345846922,-154.84515485,0.0005479,4]
[320394124,1711345846931,-500.0,0.0005479,120]
[320394125,1711345846940,-29126.87,0.0005479,120]
[320394126,1711345846949,-1064.18404564,0.00054791,15]
[320394127,1711345846958,-455.55464992,0.00054791,4]
[320394128,1711345846968,-500.0,0.00054791,120]
[320394129,1711345846977,-500.0,0.00054791,120]
[320394130,1711345846987,-29126.87,0.00054791,120]
[320394131,1711345846996,-29126.87,0.00054791,120]
[320394132,1711345847006,-482.363794,0.00054791,7]
[320394133,1711345847015,-482.363794,0.00054791,7]
[320394134,1711345847024,-151.0,0.00054792,7]
[320394135,1711345847033,-151.0,0.00054792,7]
[320394136,1711345847042,-298.482581,0.00054792,7]
[320394137,1711345847052,-151.0,0.00054792,7]
[320394138,1711345847061,-151.0,0.00054792,7]
[320394139,1711345847070,-151.0,0.00054792,7]
[320394140,1711345847080,-163.322975,0.00054792,7]
[320394141,1711345847089,-163.322975,0.00054792,7]
[320394142,1711345847100,-859.696584,0.00054792,7]
[320394143,1711345847108,-859.696584,0.00054792,7]
[320394144,1711345847117,-151.0,0.00054792,7]
[320394145,1711345847127,-151.0,0.00054792,7]
[320394146,1711345847136,-500.0,0.00054792,120]
[320394147,1711345847145,-500.0,0.00054792,120]
[320394148,1711345847154,-500.0,0.00054792,120]
[320394149,1711345847164,-151.0,0.00054792,7]
[320394150,1711345847173,-151.0,0.00054792,7]
[320394151,1711345847183,-29126.87,0.00054792,120]
[320394152,1711345847193,-29126.87,0.00054792,120]
[320394153,1711345847202,-29126.87,0.00054792,120]
[320394154,1711345847212,-29126.87,0.00054792,120]
[320394155,1711345847221,-482.363794,0.00054792,7]
[320394156,1711345847230,-482.363794,0.00054792,7]
[320394157,1711345847244,-151.0,0.00054793,7]
[320394158,1711345847254,-1495.75,0.00054793,30]
[320394159,1711345847263,-1495.75,0.00054793,30]
[320394160,1711345847272,-1495.75,0.00054793,30]
[320394161,1711345847284,-1495.75,0.00054793,30]
[320394162,1711345847295,-1495.75,0.00054793,30]
[320394163,1711345847304,-1495.75,0.00054793,30]
[320394164,1711345847314,-1495.75,0.00054793,30]
[320394165,1711345847326,-1495.75,0.00054793,30]
[320394166,1711345847338,-1495.75,0.00054793,30]
[320394167,1711345847347,-1495.75,0.00054793,30]
[320394168,1711345847356,-1495.75,0.00054793,30]
[320394169,1711345847365,-1495.75,0.00054793,30]
[320394170,1711345847374,-1495.75,0.00054793,30]
[320394171,1711345847386,-1495.75,0.00054793,30]
[320394172,1711345847397,-1495.75,0.00054793,30]
[320394173,1711345847405,-1495.75,0.00054793,30]
[320394174,1711345847414,-1495.75,0.00054793,30]
[320394175,1711345847424,-1495.75,0.00054793,30]
[320394176,1711345847433,-1495.75,0.00054793,30]
[320394177,1711345847442,-1495.75,0.00054793,30]
[320394178,1711345847451,-1495.75,0.00054793,30]
[320394179,1711345847461,-1495.75,0.00054793,30]
[320394180,1711345847470,-1495.75,0.00054793,30]
[320394181,1711345847479,-1495.76991359,0.00054793,30]
[320394182,1711345847489,-151.0,0.00054793,7]
[320394183,1711345847501,-151.0,0.00054793,7]
[320394184,1711345847510,-838.359953,0.00054793,7]
[320394185,1711345847520,-838.359953,0.00054793,7]
[320394186,1711345847529,-151.0,0.00054793,7]
[320394187,1711345847538,-151.0,0.00054793,7]
[320394188,1711345847547,-163.322975,0.00054793,7]
[320394189,1711345847556,-163.322975,0.00054793,7]
[320394190,1711345847565,-163.322975,0.00054793,7]
[320394191,1711345847574,-163.322975,0.00054793,7]
[320394192,1711345847583,-859.696584,0.00054793,7]
[320394193,1711345847591,-859.696584,0.00054793,7]
[320394194,1711345847602,-859.696584,0.00054793,7]
[320394195,1711345847611,-859.696584,0.00054793,7]
[320394196,1711345847620,-151.0,0.00054793,7]
[320394197,1711345847629,-151.0,0.00054793,7]
[320394198,1711345847638,-258.683948,0.00054793,7]
[320394199,1711345847647,-500.0,0.00054793,120]
[320394200,1711345847656,-151.0,0.00054793,7]
[320394201,1711345847664,-151.0,0.00054793,7]
[320394202,1711345847673,-241.870768,0.00054793,7]
[320394203,1711345847682,-29126.87,0.00054793,120]
[320394204,1711345847690,-29126.87,0.00054793,120]
[320394205,1711345847699,-29126.87,0.00054793,120]
[320394206,1711345847708,-482.363794,0.00054793,7]
[320394207,1711345847717,-482.363794,0.00054793,7]
[320394208,1711345847726,-482.363794,0.00054793,7]
[320394209,1711345847735,-482.363794,0.00054793,7]
[320394210,1711345847744,-500.0,0.00054794,120]
[320394211,1711345847753,-246.76955318,0.00054794,120]
[320394212,1711345847764,-504.28173393,0.00054794,120]
[320394213,1711345847773,-500.0,0.00054794,120]
[320394214,1711345847782,-503.75587855,0.00054794,120]
[320394215,1711345847791,-505.74445312,0.00054794,120]
[320394216,1711345847800,-500.0,0.00054794,120]
[320394217,1711345847809,-500.0,0.00054794,120]
[320394218,1711345847817,-500.0,0.00054794,120]
[320394219,1711345847826,-500.0,0.00054794,120]
[320394220,1711345847834,-500.0,0.00054794,120]
[320394221,1711345847843,-500.0,0.00054794,120]
[320394222,1711345847852,-500.0,0.00054794,120]
[320394223,1711345847861,-500.0,0.00054794,120]
[320394224,1711345847870,-500.0,0.00054794,120]
[320394225,1711345847879,-500.0,0.00054794,120]
[320394226,1711345847887,-519.07,0.00054794,120]
[320394227,1711345847896,-610.86196942,0.00054794,120]
[320394228,1711345847905,-504.4538203,0.00054794,120]
[320394229,1711345847914,-500.0,0.00054794,120]
[320394230,1711345847923,-501.75421871,0.00054794,120]
[320394231,1711345847932,-500.0,0.00054794,120]
[320394232,1711345847941,-500.0,0.00054794,120]
[320394233,1711345847950,-818.49,0.00054794,120]
[320394234,1711345847959,-501.49538306,0.00054794,120]
[320394235,1711345847968,-500.0,0.00054794,120]
[320394236,1711345847977,-432.66922936,0.00054794,120]
[320394237,1711345847986,-500.0,0.00054794,120]
[320394238,1711345847995,-500.0,0.00054794,120]
[320394239,1711345848004,-500.66948951,0.00054794,120]
[320394240,1711345848013,-500.0,0.00054794,120]
[320394241,1711345848023,-501.00686935,0.00054794,120]
[320394242,1711345848032,-501.09825803,0.00054794,120]
[320394243,1711345848042,-500.0,0.00054794,120]
[320394244,1711345848051,-502.46413714,0.00054794,120]
[320394245,1711345848060,-370.29433767,0.00054794,120]
[320394246,1711345848069,-500.0,0.00054794,30]
[320394247,1711345848078,-500.0,0.00054794,120]
[320394248,1711345848088,-500.94894229,0.00054794,120]
[320394249,1711345848098,-500.0,0.00054794,120]
[320394250,1711345848108,-501.5170978,0.00054794,120]
[320394251,1711345848117,-500.0,0.00054794,120]
[320394252,1711345848126,-500.0,0.00054794,120]
[320394253,1711345848135,-500.0,0.00054794,120]
[320394254,1711345848145,-500.0,0.00054794,120]
[320394255,1711345848156,-500.0,0.00054794,120]
[320394256,1711345848165,-500.0,0.00054794,120]
[320394257,1711345848174,-500.0,0.00054794,120]
[320394258,1711345848183,-501.13824993,0.00054794,120]
[320394259,1711345848192,-500.0,0.00054794,120]
[320394260,1711345848202,-500.91070785,0.00054794,120]
[320394261,1711345848211,-500.0,0.00054794,120]
[320394262,1711345848221,-502.62308169,0.00054794,120]
[320394263,1711345848231,-500.0,0.00054794,120]
[320394264,1711345848244,-501.00078366,0.00054794,120]
[320394265,1711345848254,-500.0,0.00054794,120]
[320394266,1711345848263,-500.0,0.00054794,120]
[320394267,1711345848272,-500.0,0.00054794,120]
[320394268,1711345848282,-500.0,0.00054794,120]
[320394269,1711345848291,-500.84254263,0.00054794,120]
[320394270,1711345848301,-500.0,0.00054794,120]
[320394271,1711345848311,-501.26505695,0.00054794,120]
[320394272,1711345848323,-500.0,0.00054794,120]
[320394273,1711345848333,-500.0,0.00054794,120]
[320394274,1711345848342,-500.0,0.00054794,120]
[320394275,1711345848443,-500.0,0.00054794,120]
[320394276,1711345848452,-500.9733357,0.00054794,120]
[320394277,1711345848461,-500.0,0.00054794,120]
[320394278,1711345848470,-501.06781705,0.00054794,120]
[320394279,1711345848479,-500.0,0.00054794,120]
[320394280,1711345848488,-504.46356,0.00054794,120]
[320394281,1711345848497,-500.75717938,0.00054794,120]
[320394282,1711345848506,-500.0,0.00054794,120]
[320394283,1711345848516,-500.80540479,0.00054794,120]
[320394284,1711345848525,-3521.75,0.00054794,120]
[320394285,1711345848534,-500.0,0.00054794,120]
[320394286,1711345848542,-1095.66,0.00054794,120]
[320394287,1711345848552,-500.0,0.00054794,120]
[320394288,1711345848561,-500.75191572,0.00054794,120]
[320394289,1711345848570,-233.05815077,0.00054794,120]
[320394290,1711345848579,-501.25761328,0.00054794,120]
[320394291,1711345848588,-1019.167069,0.00054794,7]
[320394292,1711345848598,-500.0,0.00054794,120]
[320394293,1711345848607,-502.66155499,0.00054794,120]
[320394294,1711345848617,-500.0,0.00054794,120]
[320394295,1711345848626,-502.84181319,0.00054794,120]
[320394296,1711345848635,-562.38,0.00054794,120]
[320394297,1711345848644,-500.0,0.00054794,120]
[320394298,1711345848654,-765.05,0.00054794,120]
[320394299,1711345848663,-500.0,0.00054794,120]
[320394300,1711345848672,-500.0,0.00054794,120]
[320394301,1711345848681,-1177.95,0.00054794,120]
[320394302,1711345848690,-151.0,0.00054794,7]
[320394303,1711345848699,-151.0,0.00054794,7]
[320394304,1711345848708,-1002.71,0.00054794,120]
[320394305,1711345848717,-500.0,0.00054794,120]
[320394306,1711345848726,-500.0,0.00054794,120]
[320394307,1711345848735,-500.0,0.00054794,120]
[320394308,1711345848744,-431.28069802,0.00054794,120]
[320394309,1711345848753,-500.0,0.00054794,120]
[320394310,1711345848762,-3561.64,0.00054794,120]
[320394311,1711345848771,-500.42935746,0.00054794,120]
[320394312,1711345848780,-500.0,0.00054794,120]
[320394313,1711345848788,-500.0,0.00054794,120]
[320394314,1711345848797,-500.0,0.00054794,120]
[320394315,1711345848808,-500.0,0.00054794,120]
[320394316,1711345848818,-502.43970439,0.00054794,120]
[320394317,1711345848827,-500.0,0.00054794,120]
[320394318,1711345848836,-500.0,0.00054794,120]
[320394319,1711345848845,-188.75481923,0.00054794,120]
[320394320,1711345848856,-500.0,0.00054794,120]
[320394321,1711345848865,-500.0,0.00054794,120]
[320394322,1711345848874,-500.0,0.00054794,120]
[320394323,1711345848883,-500.0,0.00054794,120]
[320394324,1711345848891,-500.0,0.00054794,120]
[320394325,1711345848901,-500.0,0.00054794,120]
[320394326,1711345848911,-500.65209626,0.00054794,120]
[320394327,1711345848920,-1059.5,0.00054794,120]
[320394328,1711345848930,-500.0,0.00054794,120]
[320394329,1711345848939,-500.0,0.00054794,120]
[320394330,1711345848948,-468.44393027,0.00054794,120]
[320394331,1711345848957,-151.0,0.00054794,7]
[320394332,1711345848966,-151.0,0.00054794,7]
[320394333,1711345848976,-500.0,0.00054794,120]
[320394334,1711345848986,-500.0,0.00054794,120]
[320394335,1711345848995,-151.0,0.00054794,7]
[320394336,1711345849004,-151.0,0.00054794,7]
[320394337,1711345849014,-500.0,0.00054794,120]
[320394338,1711345849024,-500.0,0.00054794,120]
[320394339,1711345849033,-500.0,0.00054794,120]
[320394340,1711345849042,-501.44496974,0.00054794,120]
[320394341,1711345849051,-500.0,0.00054794,120]
[320394342,1711345849061,-500.0,0.00054794,120]
[320394343,1711345849071,-500.0,0.00054794,120]
[320394344,1711345849081,-500.0,0.00054794,120]
[320394345,1711345849091,-415.42558344,0.00054794,120]
[320394346,1711345849101,-500.81292198,0.00054794,2]
[320394347,1711345849110,-500.0,0.00054794,120]
[320394348,1711345849119,-500.0,0.00054794,120]
[320394349,1711345849129,-499.48885259,0.00054794,120]
[320394350,1711345849138,-500.0,0.00054794,120]
[320394351,1711345849147,-500.0,0.00054794,120]
[320394352,1711345849157,-500.0,0.00054794,120]